bitfinex/quotes_ETHUSD_20220118
["timestamp","ask_amount","ask_price","bid_price","bid_amount"]
[1642545715007,0.52142857,3186.5,3186.4,0.8495]
[1642545715209,0.52142857,3186.5,3186.4,7.40939]
[1642545715613,0.52142857,3186.5,3186.4,8.70939]
[1642545716109,0.52142857,3186.5,3186.4,11.37604252]
[1642545716307,0.52142857,3186.5,3186.4,11.25054252]
[1642545717209,0.52142857,3186.5,3186.4,4.30054252]
[1642545718266,0.48142857,3186.5,3186.4,7.30054252]
[1642545718563,3.9505,3186.8,3186.7,4.63418092]
[1642545718765,0.001111,3187.0,3186.7,5.41858092]
[1642545719764,0.001111,3187.0,3186.7,5.36858092]
[1642545719964,10.441011,3187.2,3186.7,5.36858092]
[1642545720364,0.00909477,3187.1,3186.7,5.36858092]
[1642545720568,10.42322104,3187.2,3186.8,0.8495]
[1642545720769,0.00852635,3187.0,3186.8,0.85120527]
[1642545720965,0.00852635,3187.0,3186.9,1.63386]
[1642545723612,0.00852635,3187.0,3186.9,6.08386]
[1642545724812,0.00852635,3187.0,3186.9,1.63386]
[1642545725664,6.01492104,3187.2,3187.0,4.05]
[1642545725665,5.20458541,3187.2,3187.0,4.05]
[1642545725859,5.20458541,3187.2,3187.1,0.78437]
[1642545726063,5.20458541,3187.2,3187.1,1.64239635]
[1642545727464,5.20458541,3187.2,3187.1,4.30828928]
[1642545728467,5.20458541,3187.2,3187.1,5.60828928]
[1642545729209,5.04076643,3187.2,3187.1,5.60828928]
[1642545729714,5.04076643,3187.2,3187.1,5.73378928]
[1642545729914,5.04076643,3187.2,3187.1,4.43974598]
[1642545730512,5.04076643,3187.2,3187.1,5.73974598]
[1642545730716,5.04076643,3187.2,3187.1,4.31424598]
[1642545731116,5.04076643,3187.2,3187.1,5.61424598]
[1642545731515,5.04076643,3187.2,3187.1,4.61424598]
[1642545731915,5.04076643,3187.2,3187.1,4.31424598]
[1642545732517,5.04076643,3187.2,3187.1,5.61424598]
[1642545732754,5.04076643,3187.2,3187.1,4.61424598]
[1642545732960,5.04076643,3187.2,3187.1,5.61424598]
[1642545733360,5.04076643,3187.2,3187.1,5.62561602]
[1642545734162,2.4889,3187.7,3187.1,5.62561602]
[1642545734363,1.2468,3187.7,3187.3,1.63378]
[1642545734762,1.2468,3187.7,3187.4,0.00682108]
[1642545735163,1.2468,3187.7,3187.4,0.85632108]
[1642545735364,3.66332857,3187.8,3187.4,1.49061108]
[1642545735568,0.00113685,3187.6,3187.4,1.49061108]
[1642545736513,0.00113685,3187.6,3187.4,1.44061108]
[1642545736712,0.00113685,3187.6,3187.5,7.95632108]
[1642545736915,0.00113685,3187.6,3187.5,0.78172108]
[1642545737315,0.00113685,3187.6,3187.5,8.15013108]
[1642545737515,0.00113685,3187.6,3187.5,9.15013108]
[1642545737714,0.00113685,3187.6,3187.5,11.8155577]
[1642545737917,0.00113685,3187.6,3187.5,6.3155577]
[1642545738515,0.00113685,3187.6,3187.5,6.5944577]
[1642545738915,0.00113685,3187.6,3187.5,6.8944577]
[1642545739916,0.00113685,3187.6,3187.5,6.62158697]
[1642545740973,0.57142857,3187.8,3187.5,6.62158697]
[1642545741173,0.57142857,3187.8,3187.7,0.65632108]
[1642545741371,0.57142857,3187.8,3187.7,5.2937121]
[1642545741571,0.57256541,3187.8,3187.7,5.2937121]
[1642545741775,0.57256541,3187.8,3187.7,0.8937121]
[1642545742372,0.57256541,3187.8,3187.7,4.5937121]
[1642545742572,0.57256541,3187.8,3187.7,9.7797234]
[1642545742875,2.5392596,3188.1,3187.9,0.60632108]
[1642545743071,2.5392596,3188.1,3188.0,1.51569108]
[1642545743370,2.5392596,3188.1,3188.0,10.26569108]
[1642545743572,2.5392596,3188.1,3188.0,11.32328108]
[1642545743773,2.4892596,3188.1,3188.0,11.32328108]
[1642545744014,0.05,3189.1,3188.6,0.60632108]
[1642545744216,0.42606216,3189.0,3188.7,0.73172108]
[1642545744425,0.42606216,3189.0,3188.9,0.60632108]
[1642545744618,0.42606216,3189.0,3188.9,13.26312238]
[1642545744819,0.00682109,3189.0,3188.9,13.14036108]
[1642545745223,1.10426797,3189.9,3189.1,0.55632108]
[1642545745425,0.00192,3190.0,3189.7,0.01299168]
[1642545745624,0.00192,3190.0,3189.9,9.46391108]
[1642545745825,0.18202931,3190.5,3190.0,8.85]
[1642545746023,0.55621031,3190.2,3190.1,9.53162108]
[1642545746226,0.55621031,3190.2,3190.1,10.13162108]
[1642545746424,0.18202931,3190.5,3190.3,9.35632108]
[1642545746623,0.18202931,3190.5,3190.3,9.78162108]
[1642545746827,0.12684384,3190.4,3190.3,10.78162108]
[1642545747027,0.12684384,3190.4,3190.3,10.78921108]
[1642545747223,0.18202931,3190.5,3190.4,9.35632108]
[1642545747423,0.18202931,3190.5,3190.4,9.48162108]
[1642545747626,0.18202931,3190.5,3190.4,11.22662108]
[1642545747870,1.82553385,3190.7,3190.6,9.35632108]
[1642545748073,1.82553385,3190.7,3190.6,2.28162108]
[1642545748271,1.82553385,3190.7,3190.6,8.53162108]
[1642545748473,1.82553385,3190.7,3190.6,7.88959108]
[1642545748672,1.82553385,3190.7,3190.6,9.32248108]
[1642545748874,1.82553385,3190.7,3190.6,9.01489108]
[1642545749271,1.82553385,3190.7,3190.6,8.01489108]
[1642545749474,1.82553385,3190.7,3190.6,9.31489108]
[1642545749679,1.82553385,3190.7,3190.6,9.02248108]
[1642545749876,0.02340289,3190.9,3190.8,0.55632108]
[1642545750074,0.02340289,3190.9,3190.8,2.16391108]
[1642545750274,0.02340289,3190.9,3190.8,6.40632108]
[1642545750475,0.02340289,3190.9,3190.8,2.16391108]
[1642545750681,0.02340289,3190.9,3190.8,1.85632108]
[1642545750874,0.02340289,3190.9,3190.8,2.16391108]
[1642545751076,0.02340289,3190.9,3190.8,1.85632108]
[1642545751276,0.02340289,3190.9,3190.8,8.41391108]
[1642545751506,0.02340289,3190.9,3190.8,2.16391108]
[1642545752109,0.02340289,3190.9,3190.8,7.15632108]
[1642545752510,0.02340289,3190.9,3190.8,6.85632108]
[1642545752710,0.02340289,3190.9,3190.8,0.55632108]
[1642545752913,0.35924392,3191.5,3191.1,0.55632108]
[1642545754917,0.35924392,3191.5,3191.3,0.00595627]
[1642545755115,0.30924392,3191.5,3191.3,0.00595627]
[1642545756373,0.30924392,3191.5,3191.1,0.52493113]
[1642545756972,2.89448251,3191.4,3191.1,0.52493113]
[1642545757279,0.1253,3191.3,3191.1,0.52493113]
[1642545757482,0.1143008,3191.3,3191.1,0.52493113]
[1642545757677,0.00454739,3191.2,3191.1,0.52493113]
[1642545760023,0.00454739,3191.2,3191.1,0.52989161]
[1642545760024,8.71144757,3191.2,3191.1,0.52989161]
[1642545760317,8.83674757,3191.2,3191.1,0.52989161]
[1642545760714,8.71144757,3191.2,3191.1,0.52989161]
[1642545760918,8.6,3191.1,3191.0,0.63828372]
[1642545761118,8.75,3191.0,3190.7,2.43472464]
[1642545761318,8.76281044,3190.8,3190.7,2.43472464]
[1642545761516,8.75,3190.7,3189.3,0.1253]
[1642545761932,8.75,3190.7,3189.9,0.00284211]
[1642545761933,0.15852685,3190.6,3189.9,0.00284211]
[1642545762318,0.01284108,3190.1,3189.9,0.00284211]
[1642545762525,0.1201,3190.5,3189.9,0.00284211]
[1642545763372,0.27749,3190.5,3189.9,0.00284211]
[1642545763872,5.061,3190.4,3189.9,0.00284211]
[1642545764071,19.36907,3190.3,3189.9,0.00284211]
[1642545764877,19.36907,3190.3,3190.0,0.00499632]
[1642545765278,0.17038405,3190.1,3190.0,0.00499632]
[1642545765475,0.29568405,3190.1,3190.0,0.00499632]
[1642545765679,8.4,3190.0,3189.2,0.1253]
[1642545765876,18.46,3189.8,3189.2,0.1253]
[1642545766076,3.03075281,3189.7,3189.3,0.00397896]
[1642545766278,18.46,3189.6,3189.3,0.00397896]
[1642545766519,8.65,3189.4,3189.2,7.896e-05]
[1642545766711,12.35282318,3189.4,3189.2,7.896e-05]
[1642545766912,12.35282318,3189.4,3188.1,0.1254]
[1642545767112,3.04711975,3189.3,3188.1,0.0754]
[1642545767311,7.39707522,3189.4,3188.2,0.00625266]
[1642545767513,7.39707522,3189.4,3188.3,0.1254]
[1642545767715,0.1254,3189.3,3188.3,0.1254]
[1642545767911,5.1774,3189.3,3188.4,0.00511581]
[1642545768112,2.94621158,3189.2,3188.5,0.1254]
[1642545768313,3.73027158,3189.2,3188.5,0.1254]
[1642545768525,3.73027158,3189.2,3188.6,0.00397897]
[1642545769117,4.65,3189.1,3188.5,0.07937897]
[1642545769318,0.00284212,3189.1,3188.5,0.07937897]
[1642545769520,3.73027158,3189.2,3188.0,0.1254]
[1642545769521,0.0022737,3189.0,3188.0,0.1254]
[1642545769919,0.00170527,3188.9,3188.7,0.00378078]
[1642545770371,0.00618026,3189.1,3188.7,0.00378078]
[1642545770372,0.00113685,3188.8,3188.7,0.00378078]
[1642545770966,0.00618026,3189.1,3188.7,0.00378078]
[1642545771372,0.00113685,3189.0,3188.7,0.00378078]
[1642545771771,0.00113685,3189.0,3188.2,0.07918078]
[1642545772071,0.1254,3188.9,3188.3,0.00284211]
[1642545772471,0.1254,3188.9,3188.1,0.1254]
[1642545772674,18.46113685,3189.0,3188.1,0.00397896]
[1642545772675,18.58653685,3189.0,3188.1,0.00397896]
[1642545772877,18.58653685,3189.0,3188.2,0.00341054]
[1642545773072,0.7842,3188.9,3188.0,0.00454739]
[1642545773273,0.1254,3188.8,3187.8,0.00568424]
[1642545773472,18.5854,3188.8,3187.9,0.1254]
[1642545773873,18.5854,3188.8,3188.0,0.00454739]
[1642545774115,2.9931382,3188.7,3188.1,0.1254]
[1642545774318,18.5854,3188.8,3188.0,0.00454739]
[1642545774319,18.5354,3188.8,3188.0,0.00454739]
[1642545774518,2.9619695,3188.7,3188.2,0.00341054]
[1642545774720,18.46,3188.6,3188.0,0.00454739]
[1642545774920,19.24427,3188.6,3187.7,0.00625266]
[1642545775120,2.95425229,3188.5,3187.7,0.00625266]
[1642545775320,3.07965229,3188.5,3187.7,0.00625266]
[1642545775524,5.0983,3188.4,3187.7,0.00625266]
[1642545775721,23.5583,3188.4,3187.7,0.00625266]
[1642545776122,2.93195157,3188.3,3187.8,2.78981034]
[1642545776321,23.5583,3188.4,3187.8,2.78981034]
[1642545776522,23.55080312,3188.4,3187.9,0.00511581]
[1642545776925,21.39390203,3188.3,3187.9,0.00511581]
[1642545777122,18.46,3188.3,3187.9,0.00511581]
[1642545777762,18.46,3188.3,3187.3,0.00852635]
[1642545777968,18.46,3188.3,3187.4,0.1254]
[1642545778175,22.3234,3188.3,3187.4,0.1254]
[1642545778369,22.3234,3188.3,3187.5,0.00738951]
[1642545778570,0.1254,3188.2,3187.5,0.00738951]
[1642545778772,18.46,3188.1,3187.5,0.00738951]
[1642545778970,18.46,3188.1,3187.5,0.1254]
[1642545779169,18.46,3188.1,3187.5,0.13278951]
[1642545779372,18.46,3188.1,3187.6,0.00682108]
[1642545779570,13.11859192,3188.1,3187.6,0.00682108]
[1642545780974,0.00468687,3188.2,3187.6,0.00682108]
[1642545781922,3.02346156,3188.2,3187.6,0.00682108]
[1642545782124,0.03036616,3188.0,3187.6,0.00682108]
[1642545782725,0.03036616,3188.0,3187.3,0.00852635]
[1642545782924,0.03036616,3188.0,3187.4,0.1254]
[1642545783327,0.03036616,3188.0,3187.5,0.00738951]
[1642545783923,0.03036616,3188.0,3187.5,2.66483761]
[1642545784323,0.03036616,3188.0,3187.6,0.00682108]
[1642545784925,0.00468006,3187.9,3187.5,0.00738951]
[1642545785784,0.00468006,3187.9,3187.3,0.00852635]
[1642545785987,0.00468006,3187.9,3187.4,0.1254]
[1642545786383,0.00468006,3187.9,3187.5,0.00738951]
[1642545786987,0.00468006,3187.9,3187.5,2.66471604]
[1642545787186,0.03029797,3187.8,3187.5,2.66471604]
[1642545787388,0.03029797,3187.8,3187.6,0.00682108]
[1642545788386,0.03029797,3187.8,3187.5,0.13278951]
[1642545788590,0.03029797,3187.8,3187.6,0.00682108]
[1642545789015,0.03029797,3187.8,3187.3,0.00852635]
[1642545789216,0.03029797,3187.8,3187.4,0.1254]
[1642545789617,0.03029797,3187.8,3187.5,0.00738951]
[1642545789819,0.00467552,3187.7,3187.5,0.00738951]
[1642545790221,0.00467552,3187.7,3187.3,0.00852635]
[1642545791021,0.03029797,3187.8,3187.3,0.00852635]
[1642545791226,0.03029797,3187.8,3187.4,0.1254]
[1642545791422,0.03029797,3187.8,3187.3,0.00852635]
[1642545791622,0.03029797,3187.8,3187.5,0.00738951]
[1642545791820,0.03029797,3187.8,3187.3,0.00852635]
[1642545792221,18.46,3188.0,3187.3,0.00852635]
[1642545792867,18.46,3187.8,3187.3,0.00852635]
[1642545793266,18.46,3187.8,3187.2,0.00909478]
[1642545793470,0.1254,3187.7,3187.2,0.00909478]
[1642545793667,18.46,3187.8,3187.2,0.00909478]
[1642545793871,18.5854,3187.8,3187.2,0.00909478]
[1642545794266,18.5854,3187.8,3187.3,2.66486387]
[1642545794470,18.46,3187.6,3187.3,2.67623391]
[1642545794670,2.97316842,3187.5,3187.4,0.00795793]
[1642545794866,19.455,3187.6,3187.4,0.00795793]
[1642545795071,0.15739,3187.5,3187.4,0.00795793]
[1642545795271,7.28279,3187.5,3187.4,0.00795793]
[1642545795471,25.37845019,3187.5,3187.4,0.00795793]
[1642545796375,25.37845019,3187.5,3186.8,0.1254]
[1642545796376,5.48e-06,3187.2,3186.8,0.1254]
[1642545796622,0.1255,3187.1,3186.8,0.1254]
[1642545796821,0.1255,3187.2,3186.9,0.00284212]
[1642545797221,4.15,3186.9,3186.8,0.07824212]
[1642545797421,0.00113685,3187.1,3186.7,3.73468092]
[1642545797623,0.1255,3187.0,3186.7,3.73468092]
[1642545797821,0.12663685,3187.1,3186.7,3.73468092]
[1642545799122,0.00113685,3187.1,3186.8,2.66531003]
[1642545800039,0.00439394,3187.0,3186.8,2.66531003]
[1642545800265,0.00439394,3187.0,3186.9,0.1255]
[1642545800964,0.00439394,3187.0,3186.8,0.1255]
[1642545803067,0.00439394,3187.0,3186.9,2.66534436]
[1642545804507,4.35439394,3187.0,3186.9,2.66534436]
[1642545804711,0.00439394,3187.0,3186.8,2.66534436]
[1642545805112,0.00439394,3187.0,3186.9,1.1255]
[1642545805513,0.00439394,3187.0,3186.9,4.9755]
[1642545805713,0.00439394,3187.0,3186.9,1.1255]
[1642545806511,0.00439394,3187.0,3186.9,3.79084436]
[1642545806715,3.2,3187.5,3187.2,0.00665212]
[1642545807115,0.00170527,3187.4,3187.2,0.00665212]
[1642545807418,0.00113685,3187.3,3187.2,0.00665212]
[1642545808268,0.00113685,3187.3,3187.2,2.67199648]
[1642545809869,0.00527269,3187.3,3187.2,2.67199648]
[1642545810470,4.90527269,3187.3,3187.2,2.67199648]
[1642545811072,0.00527269,3187.3,3187.2,2.67199648]
[1642545811524,8.41266269,3187.3,3187.2,2.67199648]
[1642545812513,26.87266269,3187.3,3187.2,2.67199648]
[1642545813115,8.41266269,3187.3,3187.2,2.67199648]
[1642545813315,26.87266269,3187.3,3187.2,2.67199648]
[1642545814522,8.41266269,3187.3,3187.2,2.67199648]
[1642545815661,26.87266269,3187.3,3187.2,2.67199648]
[1642545815863,8.41266269,3187.3,3187.2,2.67199648]
[1642545816967,26.87266269,3187.3,3187.2,2.67199648]
[1642545820212,26.87266269,3187.3,3187.2,0.00665212]
[1642545823665,27.17266269,3187.3,3187.2,0.00665212]
[1642545828719,26.87266269,3187.3,3187.2,0.00665212]
[1642545829320,18.46,3187.1,3186.9,0.00113685]
[1642545829520,18.48966667,3187.1,3186.9,0.00113685]
[1642545829720,18.48966667,3187.1,3186.6,0.00284212]
[1642545829721,18.46,3187.1,3186.6,0.00284212]
[1642545829921,18.46,3187.1,3186.2,0.00511581]
[1642545830133,2.94447589,3187.2,3186.3,0.1255]
[1642545830134,18.46,3186.9,3186.3,0.1255]
[1642545830573,18.46,3186.9,3186.4,0.00397896]
[1642545830976,0.78478,3186.8,3186.4,0.00397896]
[1642545831171,18.46,3186.7,3186.4,0.00397896]
[1642545831371,18.46,3186.7,3186.5,2.66565246]
[1642545831673,18.46,3186.7,3186.6,0.00284212]
[1642545831870,1.56966,3186.9,3186.6,0.00284212]
[1642545832274,18.46,3186.8,3186.6,0.00284212]
[1642545832675,19.24477,3186.8,3186.6,0.00284212]
[1642545833672,19.24477,3186.8,3186.3,0.13004739]
[1642545833873,19.24477,3186.8,3186.4,0.00397896]
[1642545834311,18.46,3186.7,3186.4,0.00397896]
[1642545834515,0.15739,3186.5,3186.3,0.00454739]
[1642545834715,26.7855,3186.4,3186.3,0.00454739]
[1642545834914,26.7855,3186.4,3186.1,0.00568423]
[1642545835115,26.46739,3186.2,3186.0,0.00625266]
[1642545835516,6.83498,3186.1,3186.0,0.00625266]
[1642545836016,25.29498,3186.1,3185.8,0.0073895]
[1642545836715,28.49498,3186.1,3185.8,0.0073895]
[1642545836920,26.69507,3185.8,3185.7,0.00795793]
[1642545837972,26.69507,3185.8,3185.6,0.00852635]
[1642545838167,7.55739,3185.7,3185.6,0.00852635]
[1642545838367,26.01739,3185.7,3185.6,0.00852635]
[1642545839067,30.98009,3185.7,3185.6,0.00852635]
[1642545839869,30.98521436,3185.7,3185.6,0.00852635]
[1642545843317,31.28521436,3185.7,3185.6,0.00852635]
[1642545844318,32.48431436,3185.7,3185.6,0.00852635]
[1642545844720,0.78526,3185.4,3184.3,1.48455618]
[1642545844921,18.46,3184.9,3184.3,1.48455618]
[1642545845120,18.46,3184.8,3184.4,0.00682108]
[1642545845774,0.15739,3184.7,3184.4,0.00682108]
[1642545846166,0.10739,3184.7,3184.4,0.00682108]
[1642545846369,0.10739,3184.7,3184.1,0.1255]
[1642545846370,0.10739,3184.7,3184.2,0.00795793]
[1642545846773,0.157,3184.7,3184.2,0.00795793]
[1642545847173,0.94232,3184.7,3184.2,0.00795793]
[1642545847673,0.7853,3184.6,3184.2,0.00795793]
[1642545847874,0.7853,3184.6,3184.3,0.1255]
[1642545848376,1.5706,3184.6,3184.2,0.00795793]
[1642545848773,1.7276,3184.6,3184.2,0.00795793]
[1642545849717,2.51297,3184.6,3184.2,0.00795793]
[1642545849916,0.00465924,3184.5,3184.2,0.00795793]
[1642545850116,0.78534,3184.4,3183.9,0.0096632]
[1642545850318,0.78534,3184.4,3184.3,2.66726337]
[1642545850722,0.78534,3184.4,3184.3,2.67465288]
[1642545851225,0.78534,3184.4,3184.3,0.00738951]
[1642545851423,0.94234,3184.4,3184.3,0.00738951]
[1642545851625,0.94234,3184.4,3184.1,0.00852635]
[1642545851925,0.94234,3184.4,3184.3,2.66726337]
[1642545852324,0.94234,3184.4,3184.3,0.00738951]
[1642545852968,5.49234,3184.4,3184.3,2.67465288]
[1642545853970,3.89234,3184.4,3184.3,2.67465288]
[1642545854974,7.54699697,3184.4,3184.3,2.67465288]
[1642545855173,3.89699697,3184.4,3184.3,2.67465288]
[1642545855372,4.02249697,3184.4,3184.3,2.67465288]
[1642545855972,7.57249697,3184.4,3184.3,2.67465288]
[1642545856620,26.33249697,3184.4,3184.3,0.00738951]
[1642545856817,29.53249697,3184.4,3184.3,0.00738951]
[1642545857018,1.5709,3184.2,3183.6,0.01136847]
[1642545857216,0.91093,3184.1,3183.4,0.01250532]
[1642545857417,0.91093,3184.1,3183.6,0.01136847]
[1642545857621,0.91093,3184.1,3183.4,0.01250532]
[1642545857822,0.91093,3184.1,3183.7,2.66774225]
[1642545858224,0.91093,3184.1,3183.8,0.01023162]
[1642545858424,2.957,3183.9,3183.8,0.01023162]
[1642545859026,3.7918,3183.9,3183.8,0.01023162]
[1642545859325,3.7918,3183.9,3183.5,0.01193689]
[1642545859524,3.7918,3183.9,3183.4,2.22967914]
[1642545859726,0.00170527,3183.8,3183.4,2.22967914]
[1642545860127,0.00113684,3183.7,3183.1,0.1255]
[1642545860368,8.28444,3184.0,3183.9,4.10557919]
[1642545861370,8.3842,3184.0,3183.9,4.10557919]
[1642545861760,8.6842,3184.0,3183.9,4.10557919]
[1642545863668,8.3842,3184.0,3183.9,4.10557919]
[1642545863876,8.6842,3184.0,3183.9,4.10557919]
[1642545864118,8.9842,3184.0,3183.9,4.10557919]
[1642545864514,27.4442,3184.0,3183.9,4.10557919]
[1642545864918,27.57388331,3184.0,3183.9,4.10557919]
[1642545866523,28.57388331,3184.0,3183.9,4.10557919]
[1642545873631,28.44838331,3184.0,3183.9,4.10557919]
[1642545875036,26.84838331,3184.0,3183.9,4.10557919]
[1642545876871,28.44838331,3184.0,3183.9,4.10557919]
[1642545880423,28.44838331,3184.0,3183.9,6.77349641]
[1642545881022,28.44838331,3184.0,3183.9,0.48886641]
[1642545881722,0.78557,3183.8,3183.2,0.00170527]
[1642545881925,18.46,3183.5,3183.2,0.00170527]
[1642545882227,18.46,3183.5,3182.8,1.61005618]
[1642545882228,19.54558,3183.5,3182.9,0.00454738]
[1642545882624,0.09976,3183.4,3182.9,1.48910356]
[1642545883071,0.09976,3183.4,3183.0,0.00397896]
[1642545883572,20.33115,3183.5,3183.4,0.04921536]
[1642545883772,3.4,3183.4,3182.9,1.4377505]
[1642545884172,0.00170527,3183.3,3182.9,1.4377505]
[1642545884571,20.33115,3183.5,3182.9,1.4377505]
[1642545884572,0.78670685,3183.2,3182.9,1.4377505]
[1642545884972,0.78557,3183.2,3182.9,1.4377505]
[1642545885172,0.78557,3183.2,3182.8,0.1255]
[1642545885974,0.78557,3183.2,3182.8,2.43538666]
[1642545886175,0.78557,3183.2,3182.8,2.30988666]
[1642545886818,3.98557,3183.2,3182.8,2.30988666]
[1642545887019,3.98557,3183.2,3182.6,0.1255]
[1642545887422,3.98557,3183.2,3182.7,0.00170527]
[1642545887615,3.98557,3183.2,3182.8,0.1255]
[1642545887821,3.98557,3183.2,3182.7,0.00170527]
[1642545888023,3.2,3183.2,3182.7,0.00170527]
[1642545888823,3.2,3183.2,3182.6,0.07720527]
[1642545889223,0.0018055,3182.7,3182.6,0.07720527]
[1642545890029,0.0018055,3182.7,3182.6,2.38709193]
[1642545890270,0.0018055,3182.7,3182.6,2.30988666]
[1642545890873,0.0018055,3182.7,3182.5,2.30988666]
[1642545891070,0.0018055,3182.7,3182.5,2.25988666]
[1642545891473,0.0018055,3182.7,3182.3,0.1255]
[1642545891872,0.0018055,3182.7,3182.4,0.00170527]
[1642545893375,0.0018055,3182.7,3182.3,0.0022737]
[1642545893877,0.0018055,3182.7,3182.5,1.50480352]
[1642545894815,0.0018055,3182.7,3182.6,1.50480352]
[1642545895220,0.0018055,3182.7,3182.3,0.0022737]
[1642545895615,0.7874455,3182.7,3182.2,3.14263415]
[1642545895816,0.7874455,3182.7,3182.3,0.0022737]
[1642545897220,0.9129455,3182.7,3182.3,0.0022737]
[1642545898572,20.1586855,3182.7,3182.3,0.0022737]
[1642545898972,20.1586855,3182.7,3182.2,0.00284212]
[1642545899373,18.46,3182.5,3182.2,0.00284212]
[1642545899573,7.53591,3182.3,3182.2,0.00284212]
[1642545899973,25.99591,3182.3,3182.2,0.00284212]
[1642545900171,25.21,3182.3,3182.2,0.00284212]
[1642545900673,25.51,3182.3,3182.2,0.00284212]
[1642545900874,25.21,3182.3,3182.2,0.00284212]
[1642545901073,26.0312,3182.3,3182.2,0.00284212]
[1642545901917,19.2812,3182.3,3182.2,2.46947167]
[1642545902122,18.46,3182.3,3182.2,2.46947167]
[1642545904925,18.46429681,3182.3,3182.2,2.46947167]
[1642545905991,0.00429681,3182.3,3182.2,2.46947167]
[1642545907395,3.20429681,3182.3,3182.2,0.00284212]
[1642545907807,21.66429681,3182.3,3181.9,0.00454739]
[1642545908202,21.66429681,3182.3,3181.9,2.47117694]
[1642545908599,21.66429681,3182.3,3182.0,0.00397897]
[1642545909426,21.66429681,3182.3,3182.2,0.03935309]
[1642545909829,21.66429681,3182.3,3182.2,0.04219521]
[1642545910430,21.68444265,3182.3,3182.2,0.04219521]
[1642545910627,21.68444265,3182.3,3182.2,2.50882476]
[1642545912535,21.80994265,3182.3,3182.2,2.50882476]
[1642545912786,22.10994265,3182.3,3182.2,2.50882476]
[1642545914272,22.89589265,3182.3,3182.2,2.50882476]
[1642545914673,22.89589265,3182.3,3182.2,0.04219521]
[1642545918729,22.10994265,3182.3,3182.2,0.04219521]
[1642545921181,3.34994265,3182.3,3182.2,0.04219521]
[1642545921483,3.22444265,3182.3,3182.2,0.04219521]
[1642545922680,3.22444265,3182.3,3182.2,2.32216036]
[1642545925330,3.22444265,3182.3,3182.2,7.22216036]
[1642545925932,3.22444265,3182.3,3182.2,2.32216036]
[1642545926327,3.22444265,3182.3,3182.2,5.22216036]
[1642545926931,0.0026325,3182.7,3182.3,5.64535263]
[1642545927231,0.0026325,3182.7,3182.3,1.04535263]
[1642545927430,0.0026325,3182.7,3182.5,0.01967615]
[1642545927631,0.0026325,3182.7,3182.5,0.03935309]
[1642545928071,0.0026325,3182.7,3182.2,3.06845727]
[1642545928072,2.11529428,3182.3,3182.2,3.06845727]
[1642545928673,2.11529428,3182.3,3182.2,0.78849212]
[1642545929873,2.12173949,3182.3,3182.2,0.79241535]
[1642545931922,2.12173949,3182.3,3182.2,0.00676535]
[1642545934727,2.12173949,3182.3,3182.2,0.79234535]
[1642545934927,2.12173949,3182.3,3182.2,0.78842212]
[1642545935129,2.12173949,3182.3,3182.2,12.046697]
[1642545935375,2.12173949,3182.3,3182.2,1.08842212]
[1642545935578,2.12173949,3182.3,3182.2,2.08842212]
[1642545935780,2.12173949,3182.3,3182.2,1.78842212]
[1642545935978,2.12173949,3182.3,3182.2,2.08842212]
[1642545937183,2.12173949,3182.3,3182.2,1.98842212]
[1642545939629,2.12173949,3182.3,3182.2,1.20284212]
[1642545939833,2.12173949,3182.3,3182.2,1.20631764]
[1642545940030,2.12173949,3182.3,3182.2,1.00631764]
[1642545940429,2.12173949,3182.3,3182.2,0.00631764]
[1642545940632,2.12173949,3182.3,3182.2,1.00631764]
[1642545941130,2.12173949,3182.3,3182.2,0.00631764]
[1642545942337,2.12173949,3182.3,3182.2,1.00631764]
[1642545942533,2.12173949,3182.3,3182.2,0.00631764]
[1642545942769,2.12173949,3182.3,3182.2,1.00631764]
[1642545943374,2.11393949,3182.3,3182.2,1.00631764]
[1642545944275,2.11393949,3182.3,3182.2,3.16803391]
[1642545944476,2.11393949,3182.3,3182.2,2.16803391]
[1642545944882,2.11393949,3182.3,3182.2,2.17342657]
[1642545945677,20.57393949,3182.3,3182.2,2.17342657]
[1642545948225,20.9443768,3182.3,3182.2,2.17342657]
[1642545948427,2.4843768,3182.3,3182.2,2.17342657]
[1642545948823,2.11393949,3182.3,3182.2,2.17342657]
[1642545950682,2.11393949,3182.3,3182.2,2.16803391]
[1642545950683,2.10854683,3182.3,3182.2,2.16803391]
[1642545954924,2.10194683,3182.3,3182.2,2.16455839]
[1642545955133,2.10194683,3182.3,3182.2,4.97283327]
[1642545955327,2.10194683,3182.3,3182.2,5.27283327]
[1642545955526,2.10194683,3182.3,3182.2,3.46455839]
[1642545955928,2.10194683,3182.3,3182.2,8.16455839]
[1642545956726,2.10194683,3182.3,3182.2,9.73567839]
[1642545957226,0.1281325,3182.7,3182.4,0.85854382]
[1642545957434,0.1281325,3182.7,3182.5,0.78548]
[1642545957630,0.1281325,3182.7,3182.6,0.1256]
[1642545958278,3.3281325,3182.7,3182.6,1.1256]
[1642545958980,3.3281325,3182.7,3182.6,2.16171627]
[1642545959479,3.3281325,3182.7,3182.6,3.16171627]
[1642545959878,3.3281325,3182.7,3182.6,3.169254]
[1642545959879,3.33441618,3182.7,3182.6,3.169254]
[1642545960080,3.20891618,3182.7,3182.6,3.129254]
[1642545960285,3.20891618,3182.7,3182.6,4.129254]
[1642545964834,3.20640249,3182.7,3182.6,4.129254]
[1642545965037,3.20640249,3182.7,3182.6,4.729254]
[1642545965480,3.20640249,3182.7,3182.6,4.854754]
[1642545965881,0.00581618,3182.8,3182.7,8.3]
[1642545966081,0.00747018,3182.8,3182.7,10.08526]
[1642545966280,0.00747018,3182.8,3182.7,11.08526]
[1642545966882,0.00747018,3182.8,3182.7,10.08526]
[1642545967084,0.00747018,3182.8,3182.7,11.59452725]
[1642545967783,0.00747018,3182.8,3182.7,10.08526]
[1642545967987,0.00021285,3182.9,3182.8,7.65]
[1642545968387,0.0013497,3182.9,3182.8,7.65]
[1642545968586,0.0013497,3182.9,3182.8,8.65]
[1642545968788,0.0013497,3182.9,3182.8,9.25]
[1642545969220,0.0013497,3182.9,3182.8,10.25]
[1642545969420,0.0018055,3183.5,3182.9,8.25]
[1642545969620,0.0018055,3183.5,3183.2,0.78525]
[1642545969821,0.00284211,3183.4,3183.2,0.78525]
[1642545970221,0.00227369,3183.3,3183.2,0.78525]
[1642545970827,0.00227369,3183.3,3183.2,2.08525]
[1642545971222,0.00227369,3183.3,3183.2,3.08525]
[1642545972121,0.00227369,3183.3,3183.2,3.38525]
[1642545972522,0.00227369,3183.3,3183.2,3.08525]
[1642545972778,0.00227369,3183.3,3183.2,2.78525]
[1642545973783,0.00227369,3183.3,3183.2,3.08525]
[1642545974083,0.00227369,3183.3,3183.2,2.25]
[1642545974884,0.00643433,3183.3,3183.2,2.25]